fUST/lending_fUST_20240908
["ID","MTS","AMOUNT","RATE_DAILY","PERIOD"]
[337533931,1725773033691,-299.656737,0.00025,7]
[337533932,1725773033720,-299.656737,0.00025,7]
[337533933,1725773033749,-299.656737,0.00025,7]
[337533934,1725773033775,-299.656737,0.00025,7]
[337533935,1725773033800,-299.656737,0.00025,7]
[337533936,1725773033827,-299.656737,0.00025,7]
[337533937,1725773033855,-299.656737,0.00025,7]
[337533938,1725773033880,-299.656737,0.00025,7]
[337533939,1725773033907,-299.656737,0.00025,7]
[337533940,1725773033932,-299.656729,0.00025,7]
[337533941,1725773033957,-151.0,0.00025,7]
[337533942,1725773033982,-151.0,0.00025,7]
[337533943,1725773034006,-151.0,0.00025,7]
[337533944,1725773034030,-151.0,0.00025,7]
[337533945,1725773034054,-151.0,0.00025,7]
[337533946,1725773034088,-344.465586,0.00025,7]
[337533947,1725773034112,-344.465586,0.00025,7]
[337533948,1725773034137,-344.465586,0.00025,7]
[337533949,1725773034162,-344.465586,0.00025,7]
[337533950,1725773034186,-344.465586,0.00025,7]
[337533951,1725773034210,-344.465586,0.00025,7]
[337533952,1725773034236,-611.892054,0.00025,7]
[337533953,1725773034261,-611.892054,0.00025,7]
[337533954,1725773034285,-344.465586,0.00025,7]
[337533955,1725773034310,-611.892054,0.00025,7]
[337533956,1725773034339,-344.465586,0.00025,7]
[337533957,1725773034364,-344.465586,0.00025,7]
[337533958,1725773034391,-611.892054,0.00025,7]
[337533959,1725773034419,-344.465588,0.00025,7]
[337533960,1725773034445,-611.892054,0.00025,7]
[337533961,1725773034470,-611.892054,0.00025,7]
[337533962,1725773034496,-611.892054,0.00025,7]
[337533963,1725773034521,-611.892054,0.00025,7]
[337533964,1725773034546,-611.892054,0.00025,7]
[337533965,1725773034572,-611.892059,0.00025,7]
[337533966,1725773034722,-151.0,0.00025,7]
[337533967,1725773034748,-151.0,0.00025,7]
[337533968,1725773034774,-151.0,0.00025,7]
[337533969,1725773034801,-151.0,0.00025,7]
[337533970,1725773034827,-151.0,0.00025,7]
[337533971,1725773034853,-151.0,0.00025,7]
[337533972,1725773034878,-151.0,0.00025,7]
[337533973,1725773034904,-151.0,0.00025,7]
[337533974,1725773034930,-273.376072,0.00025,7]
[337533975,1725773034958,-234.143079,0.00025,7]
[337533976,1725773034988,-234.143079,0.00025,7]
[337533977,1725773035014,-234.143079,0.00025,7]
[337533978,1725773035040,-234.143079,0.00025,7]
[337533979,1725773035066,-234.143079,0.00025,7]
[337533980,1725773035092,-234.143079,0.00025,7]
[337533981,1725773035116,-234.143079,0.00025,7]
[337533982,1725773035141,-234.143079,0.00025,7]
[337533983,1725773035167,-234.143079,0.00025,7]
[337533984,1725773035194,-234.14307,0.00025,7]
[337533985,1725773035222,-162.06191,0.00025,7]
[337533986,1725773035249,-162.06191,0.00025,7]
[337533987,1725773035276,-162.06191,0.00025,7]
[337533988,1725773035302,-162.06191,0.00025,7]
[337533989,1725773035329,-162.06191,0.00025,7]
[337533990,1725773035354,-162.06191,0.00025,7]
[337533991,1725773035380,-162.06191,0.00025,7]
[337533992,1725773035406,-162.06191,0.00025,7]
[337533993,1725773035430,-162.06191,0.00025,7]
[337533994,1725773035457,-162.061915,0.00025,7]
[337533995,1725773035483,-151.0,0.00025,7]
[337533996,1725773035509,-151.0,0.00025,7]
[337533997,1725773035534,-151.0,0.00025,7]
[337533998,1725773035560,-151.0,0.00025,7]
[337533999,1725773035589,-151.0,0.00025,7]
[337534000,1725773035616,-151.0,0.00025,7]
[337534001,1725773035640,-151.0,0.00025,7]
[337534002,1725773035665,-193.184886,0.00025,7]
[337534003,1725773035690,-243.345468,0.00025,7]
[337534004,1725773035715,-405.917777,0.00025,7]
[337534005,1725773035741,-151.0,0.00025,7]
[337534006,1725773035766,-405.917777,0.00025,7]
[337534007,1725773035793,-151.0,0.00025,7]
[337534008,1725773035818,-405.917777,0.00025,7]
[337534009,1725773035843,-156.929043,0.00025,7]
[337534010,1725773035868,-405.917777,0.00025,7]
[337534011,1725773035894,-405.917777,0.00025,7]
[337534012,1725773035922,-151.0,0.00025,7]
[337534013,1725773035954,-151.0,0.00025,7]
[337534014,1725773035980,-405.917777,0.00025,7]
[337534015,1725773036006,-151.0,0.00025,7]
[337534016,1725773036033,-405.917777,0.00025,7]
[337534017,1725773036057,-151.0,0.00025,7]
[337534018,1725773036082,-405.917777,0.00025,7]
[337534019,1725773036108,-151.0,0.00025,7]
[337534020,1725773036137,-405.917777,0.00025,7]
[337534021,1725773036162,-405.917782,0.00025,7]
[337534022,1725773036188,-344.230459,0.00025,7]
[337534023,1725773036217,-344.230459,0.00025,7]
[337534024,1725773036246,-344.230459,0.00025,7]
[337534025,1725773036273,-344.230459,0.00025,7]
[337534026,1725773036298,-344.230459,0.00025,7]
[337534027,1725773036323,-151.0,0.0002501,7]
[337534028,1725773036347,-276.213511,0.0002501,7]
[337534029,1725773036371,-151.0,0.0002509,7]
[337534030,1725773036395,-299.561731,0.0002509,7]
[337534031,1725773036420,-268.031643,0.0002509,7]
[337534032,1725773036444,-151.0,0.0002509,7]
[337534033,1725773036469,-151.0,0.0002509,7]
[337534034,1725773036495,-151.0,0.0002509,7]
[337534035,1725773036519,-151.920782,0.0002509,7]
[337534036,1725773036544,-151.0,0.0002509,7]
[337534037,1725773036571,-151.0,0.0002509,7]
[337534038,1725773036597,-200.288689,0.0002509,7]
[337534039,1725773036623,-200.288689,0.0002509,7]
[337534040,1725773036648,-151.0,0.0002509,7]
[337534041,1725773036673,-151.0,0.0002509,7]
[337534042,1725773036698,-870.539477,0.0002509,7]
[337534043,1725773036722,-151.0,0.0002509,7]
[337534044,1725773036750,-870.539477,0.0002509,7]
[337534045,1725773036777,-151.0,0.0002509,7]
[337534046,1725773036803,-251.804955,0.0002509,7]
[337534047,1725773036829,-203.407098,0.0002509,7]
[337534048,1725773036852,-203.407098,0.0002509,7]
[337534049,1725773036877,-251.804955,0.0002509,7]
[337534050,1725773036902,-325.906244,0.0002509,7]
[337534051,1725773036927,-325.906244,0.0002509,7]
[337534052,1725773036952,-1419.746351,0.0002509,7]
[337534053,1725773036978,-1419.746351,0.0002509,7]
[337534054,1725773037002,-446.960418,0.0002509,7]
[337534055,1725773037028,-446.960418,0.0002509,7]
[337534056,1725773037053,-601.232438,0.0002509,7]
[337534057,1725773037081,-601.232438,0.0002509,7]
[337534058,1725773037106,-176.916088,0.0002509,7]
[337534059,1725773037136,-176.916088,0.0002509,7]
[337534060,1725773037162,-344.230459,0.0002509,7]
[337534061,1725773037187,-151.0,0.000253,7]
[337534062,1725773037214,-210.830207,0.000268,7]
[337534063,1725773037398,-151.0,0.000268,7]
[337534064,1725773037423,-151.0,0.000268,7]
[337534065,1725773037447,-151.0,0.000268,7]
[337534066,1725773037472,-151.0,0.000268,7]
[337534067,1725773037497,-155.211254,0.000268,7]
[337534068,1725773037522,-151.0,0.000268,7]
[337534069,1725773037547,-200.288689,0.000268,7]
[337534070,1725773037575,-200.288689,0.000268,7]
[337534071,1725773037599,-154.508817,0.000268,7]
[337534072,1725773037626,-219.980931,0.000268,7]
[337534073,1725773037652,-870.539477,0.000268,7]
[337534074,1725773037677,-151.0,0.000268,7]
[337534075,1725773037703,-870.539477,0.000268,7]
[337534076,1725773037728,-170.785683,0.000268,7]
[337534077,1725773037754,-251.804955,0.000268,7]
[337534078,1725773037780,-203.407098,0.000268,7]
[337534079,1725773037804,-203.407098,0.000268,7]
[337534080,1725773037831,-251.804955,0.000268,7]
[337534081,1725773037856,-325.906244,0.000268,7]
[337534082,1725773037883,-325.906244,0.000268,7]
[337534083,1725773037909,-1419.746351,0.000268,7]
[337534084,1725773037935,-1419.746351,0.000268,7]
[337534085,1725773037962,-446.960418,0.000268,7]
[337534086,1725773037988,-446.960418,0.000268,7]
[337534087,1725773038014,-601.232438,0.000268,7]
[337534088,1725773038041,-601.232438,0.000268,7]
[337534089,1725773038067,-176.916088,0.000268,7]
[337534090,1725773038093,-176.916088,0.000268,7]
[337534091,1725773038119,-200.0,0.00027,7]
[337534092,1725773038145,-151.0,0.00027397,7]
[337534093,1725773038170,-151.0,0.00027397,7]
[337534094,1725773038196,-151.0,0.00027397,7]
[337534095,1725773038223,-200.288689,0.00027397,7]
[337534096,1725773038249,-200.28869,0.00027397,7]
[337534097,1725773038275,-870.539477,0.00027397,7]
[337534098,1725773038301,-151.0,0.00027397,7]
[337534099,1725773038328,-870.539481,0.00027397,7]
[337534100,1725773038354,-251.804955,0.00027397,7]
[337534101,1725773038380,-203.407098,0.00027397,7]
[337534102,1725773038405,-203.407096,0.00027397,7]
[337534103,1725773038430,-251.804958,0.00027397,7]
[337534104,1725773038458,-325.906244,0.00027397,7]
[337534105,1725773038484,-325.906244,0.00027397,7]
[337534106,1725773038510,-325.906244,0.00027397,7]
[337534107,1725773038536,-325.90623418,0.00027397,7]
[337534108,1725773038564,-1419.746351,0.00027397,7]
[337534109,1725773038591,-1419.746343,0.00027397,7]
[337534110,1725773038616,-446.960418,0.00027397,7]
[337534111,1725773038641,-446.960422,0.00027397,7]
[337534112,1725773038667,-601.232438,0.00027397,7]
[337534113,1725773038692,-601.232438,0.00027397,7]
[337534114,1725773038719,-176.916088,0.00027397,7]
[337534115,1725773038745,-176.916094,0.00027397,7]
[337534116,1725773038770,-197.228078,0.00027397,7]
[337534117,1725773038794,-197.228078,0.00027397,7]
[337534118,1725773038820,-197.228078,0.00027397,7]
[337534119,1725773038847,-197.228078,0.00027397,7]
[337534120,1725773038874,-197.228078,0.00027397,7]
[337534121,1725773038898,-197.228078,0.00027397,7]
[337534122,1725773038922,-197.228078,0.00027397,7]
[337534123,1725773038947,-197.228078,0.00027397,7]
[337534124,1725773038972,-197.228078,0.00027397,7]
[337534125,1725773038996,-197.228078,0.00027397,7]
[337534126,1725773039021,-197.228078,0.00027397,7]
[337534127,1725773039045,-197.228078,0.00027397,7]
[337534128,1725773039070,-197.228078,0.00027397,7]
[337534129,1725773039095,-197.228078,0.00027397,7]
[337534130,1725773039119,-197.228078,0.00027397,7]
[337534131,1725773039143,-197.228078,0.00027397,7]
[337534132,1725773039168,-197.228078,0.00027397,7]
[337534133,1725773039193,-197.228078,0.00027397,7]
[337534134,1725773039217,-197.228078,0.00027397,7]
[337534135,1725773039242,-197.228078,0.00027397,7]
[337534136,1725773039268,-5043.171945,0.00027397,7]
[337534137,1725773039294,-5043.171945,0.00027397,7]
[337534138,1725773039319,-5043.171945,0.00027397,7]
[337534139,1725773039343,-2901.83381646,0.00027397,7]
[337534140,1725773058153,-344.230459,0.00025,7]
[337534141,1725773058350,-344.230459,0.00025,7]
[337534142,1725773058378,-344.230459,0.00025,7]
[337534143,1725773058403,-344.230459,0.00025,7]
[337534144,1725773058428,-344.230459,0.00025,7]
[337534145,1725773058453,-344.230459,0.0002509,7]
[337534146,1725773058480,-2141.33812854,0.00027397,7]
[337534147,1725773058505,-5043.171945,0.00027397,7]
[337534148,1725773058530,-5043.171945,0.00027397,7]
[337534149,1725773058555,-5043.171945,0.00027397,7]
[337534150,1725773058581,-5043.171945,0.00027397,7]
[337534151,1725773058616,-5043.171945,0.00027397,7]
[337534152,1725773058641,-5043.171945,0.00027397,7]
[337534153,1725773058668,-5043.171945,0.00027397,7]
[337534154,1725773058694,-5043.171945,0.00027397,7]
[337534155,1725773058720,-5043.171945,0.00027397,7]
[337534156,1725773058747,-5043.171945,0.00027397,7]
[337534157,1725773058775,-5043.171945,0.00027397,7]
[337534158,1725773058800,-5043.171945,0.00027397,7]
[337534159,1725773058826,-5043.171945,0.00027397,7]
[337534160,1725773058856,-5043.171945,0.00027397,7]
[337534161,1725773058883,-5043.171945,0.00027397,7]
[337534162,1725773058909,-5043.171952,0.00027397,7]
[337534163,1725773058936,-1010.38445812,0.0003,7]
[337534164,1725773058966,-151.0,0.0003,120]
[337534165,1725773058994,-151.0,0.0003,120]
[337534166,1725773059021,-173.0,0.0003,120]
[337534167,1725773059048,-5221.90693278,0.0003,30]
[337534168,1725773059078,-151.0,0.00033014,120]
[337534169,1725773059109,-151.0,0.00033753,120]
[337534170,1725773059136,-3000.0,0.000343,19]
[337534171,1725773059164,-3000.0,0.0003431,19]
[337534172,1725773059192,-3000.0,0.0003432,19]
[337534173,1725773059218,-3000.0,0.0003433,19]
[337534174,1725773059244,-3000.0,0.0003434,19]
[337534175,1725773059271,-3000.0,0.0003435,19]
[337534176,1725773059298,-3000.0,0.0003436,19]
[337534177,1725773059324,-3000.0,0.0003437,19]
[337534178,1725773059358,-3000.0,0.0003438,19]
[337534179,1725773059384,-3000.0,0.0003439,19]
[337534180,1725773059410,-3000.0,0.000344,19]
[337534181,1725773059436,-3000.0,0.0003441,19]
[337534182,1725773059462,-3000.0,0.0003442,19]
[337534183,1725773059489,-3000.0,0.0003443,19]
[337534184,1725773059516,-3000.0,0.0003444,19]
[337534185,1725773059543,-3000.0,0.0003445,20]
[337534186,1725773059574,-3000.0,0.0003446,20]
[337534187,1725773059602,-3000.0,0.0003447,20]
[337534188,1725773059630,-3000.0,0.0003448,20]
[337534189,1725773059660,-3000.0,0.0003449,20]
[337534190,1725773059687,-3000.0,0.000345,20]
[337534191,1725773059715,-3000.0,0.0003451,20]
[337534192,1725773059742,-3000.0,0.0003452,20]
[337534193,1725773059768,-1484.37668141,0.00034521,120]
[337534194,1725773059793,-3000.0,0.0003453,20]
[337534195,1725773059819,-3000.0,0.0003454,20]
[337534196,1725773059845,-3000.0,0.0003455,20]
[337534197,1725773059872,-3000.0,0.0003456,20]
[337534198,1725773059898,-3000.0,0.0003457,20]
[337534199,1725773059923,-3000.0,0.0003458,20]
[337534200,1725773059948,-3000.0,0.0003459,20]
[337534201,1725773059974,-3000.0,0.000346,20]
[337534202,1725773059999,-3000.0,0.0003461,20]
[337534203,1725773060023,-3000.0,0.0003462,20]
[337534204,1725773060048,-3000.0,0.0003463,20]
[337534205,1725773060074,-3000.0,0.0003464,20]
[337534206,1725773060098,-3000.0,0.0003465,20]
[337534207,1725773060123,-3000.0,0.0003466,20]
[337534208,1725773060147,-3000.0,0.0003467,20]
[337534209,1725773060173,-3000.0,0.0003468,20]
[337534210,1725773060198,-3000.0,0.0003469,20]
[337534211,1725773060223,-3000.0,0.000347,20]
[337534212,1725773060249,-3000.0,0.0003471,21]
[337534213,1725773060275,-3000.0,0.0003472,21]
[337534214,1725773060299,-3000.0,0.0003473,21]
[337534215,1725773060327,-3000.0,0.0003474,21]
[337534216,1725773060354,-3000.0,0.0003475,21]
[337534217,1725773060379,-3000.0,0.0003476,21]
[337534218,1725773060403,-4824.807465,0.0003477,21]
[337534219,1725773060426,-60784.05245315,0.00035,7]
[337534220,1725773066476,-275958.62477885,0.00035,7]
[337534221,1725773066503,-8946.57315913,0.00035,5]
[337534222,1725773066530,-15094.80206202,0.00035072,30]
[337534223,1725773070115,-300000.0,0.00035072,30]
[337534224,1725773075042,-461757.18573798,0.00035072,30]
[337534225,1725773075069,-187.822088,0.00035616,120]
[337534226,1725773075096,-151.0,0.00036027,120]
[337534227,1725773075122,-160.0,0.00036066,5]
[337534228,1725773075147,-1027.087776,0.000365,27]
[337534229,1725773075172,-1000.0,0.00037,27]
[337534230,1725773075197,-232.9514,0.00037072,30]
[337534231,1725773075223,-160.0,0.00037332,6]
[337534232,1725773075403,-3325.15461466,0.00037444,7]
[337534233,1725773075432,-1000.0,0.000375,27]
[337534234,1725773075461,-151.0,0.00037507,120]
[337534235,1725773075487,-2300.45689711,0.0003786,120]
[337534236,1725773075513,-1500.0,0.00038,30]
[337534237,1725773075537,-1000.0,0.00038,27]
[337534238,1725773075567,-604.88108945,0.00038058,30]
[337534239,1725773075598,-1200.0,0.000383,30]
[337534240,1725773075625,-150.0,0.000383,30]
[337534241,1725773075652,-2000.0,0.000383,14]
[337534242,1725773075679,-184.25,0.000383,14]
[337534243,1725773075704,-15452.12801024,0.00038328,30]
[337534244,1725773075730,-300.0,0.00038399,30]
[337534245,1725773075755,-2000.0,0.000384,10]
[337534246,1725773075780,-184.25,0.000384,14]
[337534247,1725773075805,-300.976177,0.000384,20]
[337534248,1725773075830,-199.99,0.00038407,120]
[337534249,1725773075855,-5001.0,0.0003843,10]
[337534250,1725773075880,-666.31,0.00038433,30]
[337534251,1725773075906,-184.25,0.000385,14]
[337534252,1725773075931,-1000.0,0.000385,27]
[337534253,1725773075970,-963.09661558,0.00038519,120]
[337534254,1725773075998,-150.0,0.00038519,120]
[337534255,1725773076026,-1228.0,0.0003852,30]
[337534256,1725773076052,-500.0,0.00038527,14]
[337534257,1725773076078,-500.0,0.00038528,14]
[337534258,1725773076104,-206.15822407,0.00038544,30]
[337534259,1725773076132,-1000.0,0.00038544,7]
[337534260,1725773076158,-200.0,0.00038544,30]
[337534261,1725773076185,-160.0,0.00038598,7]
[337534262,1725773076211,-162.30992111,0.00038598,5]
[337534263,1725773076238,-300.80629853,0.000386,30]
[337534264,1725773076265,-655.17871657,0.000386,30]
[337534265,1725773076291,-10000.0,0.00038714,30]
[337534266,1725773076318,-888.0,0.00038904,120]
[337534267,1725773076345,-666.0,0.00038904,30]
[337534268,1725773076372,-151.0,0.00039041,120]
[337534269,1725773076400,-500.0,0.00039726,15]
[337534270,1725773076426,-500.0,0.00039726,15]
[337534271,1725773076452,-500.0,0.00039726,15]
[337534272,1725773076478,-500.0,0.00039726,15]
[337534273,1725773076505,-599.74991249,0.00039726,15]
[337534274,1725773076530,-500.0,0.00039726,15]
[337534275,1725773076556,-500.0,0.00039726,15]
[337534276,1725773076583,-500.0,0.00039726,15]
[337534277,1725773076610,-500.0,0.00039726,15]
[337534278,1725773076636,-500.0,0.00039726,15]
[337534279,1725773076667,-2021.0,0.0004,120]
[337534280,1725773076694,-150.0,0.0004,120]
[337534281,1725773076722,-500.0,0.0004,7]
[337534282,1725773076749,-1053.32502583,0.0004,120]
[337534283,1725773076775,-150.73809564,0.0004,30]
[337534284,1725773076802,-557.47526593,0.0004,120]
[337534285,1725773076828,-255.7,0.00041096,15]
[337534286,1725773076857,-152.662026,0.00041096,30]
[337534287,1725773076882,-465.0,0.00041228,15]
[337534288,1725773076908,-151.0,0.0004126,120]
[337534289,1725773076935,-7531.54300093,0.00041434,28]
[337534290,1725773076963,-153.0,0.00041918,120]
[337534291,1725773076990,-153.0,0.00041918,120]
[337534292,1725773077017,-151.0,0.00042055,120]
[337534293,1725773077044,-138882.55667998,0.000433,120]
[337534294,1725773077071,-187.822088,0.00044521,120]
[337534295,1725773077099,-159.663,0.00045,30]
[337534296,1725773077127,-172.36462444,0.00045,120]
[337534297,1725773077156,-56119.0,0.00045,60]
[337534298,1725773077183,-500.0,0.00045,30]
[337534299,1725773077210,-151.43131634,0.00045,120]
[337534300,1725773077237,-151.0,0.00045014,120]
[337534301,1725773077264,-151.0,0.00045068,120]
[337534302,1725773077290,-150.0,0.00045365,30]
[337534303,1725773077316,-300.0,0.00045365,30]
[337534304,1725773077342,-3200.0,0.00045365,14]
[337534305,1725773077371,-5000.0,0.000455,120]
[337534306,1725773077403,-623.85442982,0.000455,120]
[337534307,1725773077433,-4000.0,0.00045814,20]
[337534308,1725773077460,-192.61778037,0.00046,30]
[337534309,1725773077487,-50000.0,0.000466,14]
[337534310,1725773077694,-50000.0,0.000466,14]
[337534311,1725773077721,-10000.0,0.000475,50]
[337534312,1725773077748,-151.0,0.00048082,120]
[337534313,1725773077774,-633.53147003,0.00048398,8]
[337534314,1725773077800,-151.0,0.00048767,120]
[337534315,1725773077826,-2500.0,0.00048918,6]
[337534316,1725773077853,-25000.0,0.00049,120]
[337534317,1725773077879,-529.32,0.00049315,60]
[337534318,1725773077905,-151.0,0.00049315,7]
[337534319,1725773077931,-165.853436,0.00049315,7]
[337534320,1725773078118,500.0,0.00035616,7]
[337534321,1725773078147,151.0,0.0002475,7]
[337534322,1725773078185,500.0,0.00039726,15]
[337534323,1725773078224,500.0,0.00035616,7]
[337534324,1725773078281,500.0,0.00035616,7]
[337534325,1725773078338,500.0,0.00035616,7]
[337534326,1725773078388,500.0,0.00035616,7]
[337534327,1725773078483,500.0,0.00035616,7]
[337534328,1725773078590,500.0,0.00035616,7]
[337534329,1725773078650,284.11247292,0.00035616,7]
[337534330,1725773078709,500.0,0.00035616,7]
[337534331,1725773078760,500.0,0.00035616,7]
[337534332,1725773078797,151.0,0.00025,7]
[337534333,1725773078846,500.0,0.00035616,7]
[337534334,1725773078887,500.0,0.00035616,7]
[337534335,1725773078947,500.0,0.00035616,7]
[337534336,1725773079004,500.0,0.00035616,7]
[337534337,1725773079066,500.0,0.00035616,7]
[337534338,1725773079179,500.0,0.00035616,7]
[337534339,1725773079260,500.0,0.00035616,7]
[337534340,1725773080367,300.0,0.00045365,30]
[337534341,1725773081655,50000.0,1e-08,2]
[337534342,1725773082457,411.41383005,0.00027696,5]
[337534343,1725773083006,150.0,0.00045365,30]
[337534344,1725773085529,223.674194,0.0002475,7]
[337534345,1725773085940,223.674194,0.00025,7]
[337534346,1725773086274,223.674194,0.00025,7]
[337534347,1725773086786,223.674194,0.00025,7]
[337534348,1725773086938,223.674194,0.0002509,7]
[337534349,1725773086968,153.0,0.00041918,120]
[337534350,1725773087446,223.674194,0.00027397,7]
[337534351,1725773087762,223.674194,0.00028767,7]
[337534352,1725773088136,223.674194,0.0003438,14]
[337534353,1725773088281,3200.0,0.00045365,14]
[337534354,1725773088437,223.674194,0.0003471,14]
[337534355,1725773089074,223.674194,0.0002475,7]
[337534356,1725773089384,223.674194,0.00025,7]
[337534357,1725773090263,223.674194,0.00025,7]
[337534358,1725773090578,223.674194,0.00025,7]
[337534359,1725773091054,223.674194,0.0002509,7]
[337534360,1725773091356,223.674194,0.00027397,7]
[337534361,1725773091490,300.346,0.00045365,30]
[337534362,1725773091866,223.674194,0.00028767,7]
[337534363,1725773092057,223.674194,0.0003438,14]
[337534364,1725773092473,223.674189,0.0003471,14]
[337534365,1725773095244,151.253,0.00045365,30]
[337534366,1725773100106,3208.191,0.00045365,14]
[337534367,1725773104195,10006.0,0.00048,60]
[337534368,1725773104383,150.0,0.00049315,5]
[337534374,1725773261099,171.9673991,0.00019974,2]
[337534375,1725773310546,824.30143065,0.00012,7]
[337534376,1725773321605,13367.73819524,0.00014,2]
[337534377,1725773323849,793.30774849,0.000129,2]
[337534409,1725773438381,-490.01325113,0.0002071,2]
[337534410,1725773438391,-3403.10136495,0.00020768,2]
[337534411,1725773438401,-3403.10136492,0.00020769,2]
[337534412,1725773438410,-1041.056209,0.00020771,2]
[337534420,1725773443376,-2362.04515592,0.00020771,2]
[337534421,1725773443386,-3403.10136492,0.00020772,2]
[337534422,1725773443396,-3403.10136492,0.00020773,2]
[337534423,1725773443405,-2514.08516447,0.00020773,2]
[337534424,1725773443415,-300.0,0.00020788,2]
[337534425,1725773443425,-300.0,0.00020788,2]
[337534426,1725773443435,-251.0,0.00020822,2]
[337534427,1725773443445,-569.6,0.00020859,3]
[337534428,1725773443455,-500.0,0.00020868,2]
[337534429,1725773443464,-314.55121788,0.00020868,2]
[337534430,1725773443474,-357.24792998,0.00020868,2]
[337534431,1725773443484,-496.37717797,0.00020868,2]
[337534432,1725773443494,-173.48975964,0.00020868,2]
[337534433,1725773443506,-500.0,0.00020868,2]
[337534434,1725773443519,-500.0,0.00020868,2]
[337534435,1725773443531,-500.0,0.00020868,2]
[337534436,1725773443540,-500.0,0.00020868,2]
[337534437,1725773443552,-500.0,0.00020868,2]
[337534438,1725773443566,-500.0,0.00020868,2]
[337534440,1725773443576,-500.0,0.00020868,2]
[337534441,1725773443586,-300.0,0.00020868,2]
[337534442,1725773443595,-34.8968643,0.00020868,2]
[337534443,1725773443608,-465.1031357,0.00020868,2]
[337534444,1725773443618,-500.0,0.00020868,2]
[337534445,1725773443629,-455.77497976,0.00020868,2]
[337534446,1725773443640,-500.0,0.00020868,2]
[337534447,1725773443651,-500.0,0.00020868,2]
[337534448,1725773443662,-500.0,0.00020868,2]
[337534449,1725773443672,-500.0,0.00020868,2]
[337534450,1725773443684,-500.0,0.00020868,2]
[337534451,1725773443700,-500.0,0.00020868,2]
[337534452,1725773443712,-500.0,0.00020868,2]
[337534453,1725773443724,-500.0,0.00020868,2]
[337534454,1725773443734,-500.0,0.00020868,2]
[337534455,1725773443743,-500.0,0.00020868,2]
[337534456,1725773443754,-500.0,0.00020868,2]
[337534457,1725773443766,-500.0,0.00020868,2]
[337534458,1725773443777,-500.0,0.00020868,2]
[337534459,1725773443788,-500.0,0.00020868,2]
[337534460,1725773443799,-500.0,0.00020868,2]
[337534461,1725773443808,-171.42982209,0.00020868,2]
[337534462,1725773443821,-328.57017791,0.00020868,2]
[337534463,1725773443831,-500.0,0.00020868,2]
[337534464,1725773443841,-500.0,0.00020868,2]
[337534465,1725773443852,-500.0,0.00020868,2]
[337534466,1725773443862,-532.15973707,0.00020868,2]
[337534467,1725773443872,-500.0,0.00020868,2]
[337534468,1725773443883,-500.0,0.00020868,2]
[337534469,1725773443893,-500.0,0.00020868,2]
[337534470,1725773443903,-500.0,0.00020868,2]
[337534471,1725773443914,-500.0,0.00020868,2]
[337534472,1725773443926,-2641.93824074,0.00020869,2]
[337534473,1725773443939,-3428.23902882,0.00020869,2]
[337534474,1725773443957,-455.57166693,0.00020869,2]